[Event "*** Titled Tuesday Blitz"]
[Site "Chess.com"]
[Date "2018.06.05"]
[Round "3"]
[White "GianmarcoVaR"]
[Black "RichardABates"]
[Result "1-0"]
[WhiteElo "2493"]
[BlackElo "2292"]
[TimeControl "180+2"]
[EndTime "13:42:55 PDT"]
[Termination "GianmarcoVaR won by resignation"]

1. d4 {[%clk 0:02:58.7]} 1... Nf6 {[%clk 0:03:00.2]} 2. Nf3 {[%clk 0:02:58.4]}
2... g6 {[%clk 0:02:59.3]} 3. g3 {[%clk 0:02:58.4]} 3... Bg7 {[%clk 0:02:59.8]}
4. Bg2 {[%clk 0:02:56.6]} 4... O-O {[%clk 0:03:00.6]} 5. O-O {[%clk 0:02:58.5]}
5... d6 {[%clk 0:03:01.6]} 6. c4 {[%clk 0:02:59.8]} 6... c6 {[%clk 0:03:02.4]}
7. Nc3 {[%clk 0:03:01]} 7... Qb6 {[%clk 0:03:03.3]} 8. b3 {[%clk 0:02:58.3]}
8... Qa5 {[%clk 0:03:04.1]} 9. Bb2 {[%clk 0:02:56.9]} 9... Qh5 {[%clk
0:03:04.1]} 10. Re1 {[%clk 0:02:51.3]} 10... Bh3 {[%clk 0:02:58.8]} 11. Bh1
{[%clk 0:02:50.5]} 11... Nbd7 {[%clk 0:02:53.6]} 12. Qd2 {[%clk 0:02:34.1]}
12... Bh6 {[%clk 0:02:48]} 13. Qc2 {[%clk 0:02:31.8]} 13... d5 {[%clk
0:02:44.5]} 14. e4 {[%clk 0:02:28.1]} 14... dxe4 {[%clk 0:02:36.5]} 15. Nxe4
{[%clk 0:02:27.8]} 15... Bf5 {[%clk 0:02:37.3]} 16. Ne5 {[%clk 0:02:20.2]} 16...
Nxe5 {[%clk 0:02:31]} 17. dxe5 {[%clk 0:02:18.3]} 17... Ng4 {[%clk 0:02:25.2]}
18. f4 {[%clk 0:02:05.2]} 18... Rad8 {[%clk 0:02:15.1]} 19. Bf3 {[%clk
0:02:04.9]} 19... Qh3 {[%clk 0:02:04.3]} 20. Qe2 {[%clk 0:01:51.9]} 20... Bxe4
{[%clk 0:01:43.4]} 21. Bxe4 {[%clk 0:01:50.6]} 21... Nxh2 {[%clk 0:01:43.8]} 22.
Qg2 {[%clk 0:00:58.9]} 22... Qxg2+ {[%clk 0:01:08.6]} 23. Bxg2 {[%clk
0:00:58.7]} 23... Ng4 {[%clk 0:01:08.6]} 24. Bf3 {[%clk 0:00:57.4]} 24... Rd2
{[%clk 0:01:01.2]} 25. Bc1 {[%clk 0:00:53.5]} 25... Rd3 {[%clk 0:00:57.8]} 26.
Kg2 {[%clk 0:00:47.1]} 26... f5 {[%clk 0:00:53.7]} 27. exf6 {[%clk 0:00:23.6]}
27... Nxf6 {[%clk 0:00:53.8]} 28. Rxe7 {[%clk 0:00:24.8]} 28... Rfd8 {[%clk
0:00:51.9]} 29. Re2 {[%clk 0:00:23.1]} 29... Bg7 {[%clk 0:00:51.4]} 30. Bb2
{[%clk 0:00:23.5]} 30... Rd2 {[%clk 0:00:51.6]} 31. Re1 {[%clk 0:00:19]} 31...
R8d7 {[%clk 0:00:38.4]} 32. Bc3 {[%clk 0:00:13.8]} 32... R2d3 {[%clk 0:00:30.4]}
33. Be5 {[%clk 0:00:10.8]} 33... h5 {[%clk 0:00:28.9]} 34. Bxf6 {[%clk
0:00:09.1]} 34... Bxf6 {[%clk 0:00:29.4]} 35. Be4 {[%clk 0:00:10.6]} 35... Rd2
{[%clk 0:00:23.2]} 36. Bxg6 {[%clk 0:00:10.7]} 36... h4 {[%clk 0:00:21.8]} 37.
g4 {[%clk 0:00:10.8]} 37... Kg7 {[%clk 0:00:17.1]} 38. Bf5 {[%clk 0:00:11.2]}
38... R7d4 {[%clk 0:00:16.3]} 39. g5 {[%clk 0:00:10]} 39... Bd8 {[%clk
0:00:16.7]} 40. Kf3 {[%clk 0:00:10.4]} 40... h3 {[%clk 0:00:12.2]} 41. Bxh3
{[%clk 0:00:07.4]} 41... R2d3+ {[%clk 0:00:12.1]} 42. Re3 {[%clk 0:00:08.3]}
42... Ba5 {[%clk 0:00:12.7]} 43. Rxd3 {[%clk 0:00:08.1]} 43... Rxd3+ {[%clk
0:00:13.1]} 44. Re3 {[%clk 0:00:09.3]} 44... Rxe3+ {[%clk 0:00:13.4]} 45. Kxe3
{[%clk 0:00:10.4]} 45... Bc3 {[%clk 0:00:14.1]} 46. f5 {[%clk 0:00:10.9]} 46...
Bb2 {[%clk 0:00:13.9]} 47. Kf4 {[%clk 0:00:11.8]} 47... Bc1+ {[%clk 0:00:13.2]}
48. Kg4 {[%clk 0:00:13]} 48... a5 {[%clk 0:00:12.2]} 49. Kh5 {[%clk 0:00:14]}
49... b5 {[%clk 0:00:11.8]} 50. Bf1 {[%clk 0:00:14.8]} 50... a4 {[%clk
0:00:11.3]} 51. cxb5 {[%clk 0:00:14.9]} 51... cxb5 {[%clk 0:00:10.9]} 52. Bxb5
{[%clk 0:00:14]} 52... axb3 {[%clk 0:00:11.9]} 53. axb3 {[%clk 0:00:15.8]} 53...
Bd2 {[%clk 0:00:12.7]} 54. f6+ {[%clk 0:00:16.9]} 1-0

[Event "*** Titled Tuesday Blitz"]
[Site "Chess.com"]
[Date "2018.06.05"]
[Round "3"]
[White "BillieKimbah"]
[Black "milovanratkovic"]
[Result "1-0"]
[WhiteElo "2751"]
[BlackElo "2542"]
[TimeControl "180+2"]
[EndTime "13:42:57 PDT"]
[Termination "BillieKimbah won by resignation"]

1. Nf3 {[%clk 0:03:01.9]} 1... Nf6 {[%clk 0:02:55.5]} 2. g3 {[%clk 0:03:02.6]}
2... g6 {[%clk 0:02:57.3]} 3. Bg2 {[%clk 0:03:03.4]} 3... Bg7 {[%clk 0:02:57.9]}
4. d4 {[%clk 0:03:04.2]} 4... d6 {[%clk 0:02:57.6]} 5. O-O {[%clk 0:03:05]} 5...
O-O {[%clk 0:02:58.1]} 6. b3 {[%clk 0:03:05.9]} 6... c6 {[%clk 0:02:56.4]} 7.
Bb2 {[%clk 0:03:06.5]} 7... Nbd7 {[%clk 0:02:57.2]} 8. c4 {[%clk 0:03:06.9]}
8... Re8 {[%clk 0:02:57.8]} 9. Nc3 {[%clk 0:03:04.3]} 9... e5 {[%clk 0:02:58]}
10. e4 {[%clk 0:02:53]} 10... Qc7 {[%clk 0:02:48.2]} 11. Re1 {[%clk 0:02:50.9]}
11... b6 {[%clk 0:02:48.8]} 12. h3 {[%clk 0:02:49]} 12... a6 {[%clk 0:02:48.9]}
13. a4 {[%clk 0:02:28]} 13... Bb7 {[%clk 0:02:23.3]} 14. d5 {[%clk 0:02:17.5]}
14... c5 {[%clk 0:02:14.5]} 15. a5 {[%clk 0:02:15]} 15... bxa5 {[%clk
0:02:06.9]} 16. Nb1 {[%clk 0:02:15.5]} 16... Nf8 {[%clk 0:02:05.1]} 17. Bc3
{[%clk 0:02:14]} 17... h6 {[%clk 0:02:04.8]} 18. Nbd2 {[%clk 0:02:11.5]} 18...
Bc8 {[%clk 0:01:57.4]} 19. Bxa5 {[%clk 0:02:10.1]} 19... Qb7 {[%clk 0:01:58.1]}
20. Qc2 {[%clk 0:02:09.7]} 20... Bd7 {[%clk 0:01:57.2]} 21. Reb1 {[%clk
0:02:10.6]} 21... Qc8 {[%clk 0:01:50.8]} 22. Kh2 {[%clk 0:02:09.6]} 22... g5
{[%clk 0:01:50.6]} 23. b4 {[%clk 0:02:06]} 23... g4 {[%clk 0:01:47.2]} 24. hxg4
{[%clk 0:02:05.4]} 24... Nxg4+ {[%clk 0:01:47.8]} 25. Kg1 {[%clk 0:02:05.9]}
25... Rb8 {[%clk 0:01:41.6]} 26. bxc5 {[%clk 0:01:55.7]} 26... Qxc5 {[%clk
0:01:42.1]} 27. Nb3 {[%clk 0:01:52.8]} 27... Qa7 {[%clk 0:01:00.4]} 28. c5
{[%clk 0:01:39.1]} 28... dxc5 {[%clk 0:01:00.6]} 29. Qxc5 {[%clk 0:01:38.3]}
29... Qxc5 {[%clk 0:00:54.9]} 30. Nxc5 {[%clk 0:01:38.8]} 30... Rxb1+ {[%clk
0:00:55.3]} 31. Rxb1 {[%clk 0:01:39.3]} 31... Bb5 {[%clk 0:00:56.6]} 32. Bf1
{[%clk 0:01:36]} 32... Rc8 {[%clk 0:00:55.7]} 33. Bb6 {[%clk 0:01:25.1]} 33...
Bxf1 {[%clk 0:00:45.3]} 34. Kxf1 {[%clk 0:01:26]} 34... Nf6 {[%clk 0:00:44.3]}
35. Nh4 {[%clk 0:01:15.5]} 35... N8d7 {[%clk 0:00:35.8]} 36. Nxd7 {[%clk
0:01:16.1]} 36... Nxd7 {[%clk 0:00:36.5]} 37. Be3 {[%clk 0:01:13.3]} 37... Bf8
{[%clk 0:00:30.3]} 38. Nf5 {[%clk 0:01:13]} 38... Rb8 {[%clk 0:00:27.2]} 39. Ra1
{[%clk 0:01:11.5]} 39... Ra8 {[%clk 0:00:18.9]} 40. Bxh6 {[%clk 0:00:26.6]}
40... Bxh6 {[%clk 0:00:18.8]} 41. Nxh6+ {[%clk 0:00:28.5]} 41... Kg7 {[%clk
0:00:19.7]} 42. Nf5+ {[%clk 0:00:29.8]} 42... Kf6 {[%clk 0:00:21.6]} 43. Ke2
{[%clk 0:00:30.9]} 43... a5 {[%clk 0:00:21.7]} 44. f3 {[%clk 0:00:31.8]} 44...
a4 {[%clk 0:00:22.6]} 45. Ra3 {[%clk 0:00:32.9]} 45... Nb6 {[%clk 0:00:19.4]}
46. Ne3 {[%clk 0:00:33.6]} 46... Rh8 {[%clk 0:00:19]} 47. Ng4+ {[%clk
0:00:34.5]} 47... Ke7 {[%clk 0:00:17.4]} 48. Nxe5 {[%clk 0:00:36.4]} 48... Rh2+
{[%clk 0:00:15.7]} 49. Kd3 {[%clk 0:00:36.8]} 49... Rg2 {[%clk 0:00:16.3]} 50.
Nc4 {[%clk 0:00:35.1]} 50... Rxg3 {[%clk 0:00:13.6]} 51. Kd4 {[%clk 0:00:36.2]}
51... Nd7 {[%clk 0:00:09.6]} 52. e5 {[%clk 0:00:31]} 52... Rh3 {[%clk
0:00:09.7]} 53. Nd6 {[%clk 0:00:25.7]} 53... Rh4+ {[%clk 0:00:09.6]} 54. Ne4
{[%clk 0:00:26.3]} 54... f5 {[%clk 0:00:10.6]} 55. exf6+ {[%clk 0:00:25.4]}
55... Nxf6 {[%clk 0:00:11.2]} 56. Rxa4 {[%clk 0:00:26.6]} 56... Rh5 {[%clk
0:00:09.1]} 57. Ra7+ {[%clk 0:00:26.3]} 57... Nd7 {[%clk 0:00:10.1]} 58. Rxd7+
{[%clk 0:00:27]} 1-0

[Event "*** Titled Tuesday Blitz"]
[Site "Chess.com"]
[Date "2018.06.05"]
[Round "3"]
[White "leclash"]
[Black "GM_Huschenbeth"]
[Result "0-1"]
[WhiteElo "2307"]
[BlackElo "2459"]
[TimeControl "180+2"]
[EndTime "13:42:57 PDT"]
[Termination "GM_Huschenbeth won by resignation"]

1. d4 {[%clk 0:03:01.9]} 1... d5 {[%clk 0:03:00.4]} 2. c4 {[%clk 0:03:02.8]}
2... dxc4 {[%clk 0:03:01.7]} 3. e3 {[%clk 0:03:03.1]} 3... e5 {[%clk 0:03:02.1]}
4. Bxc4 {[%clk 0:03:04.3]} 4... exd4 {[%clk 0:03:03.5]} 5. exd4 {[%clk
0:03:06.2]} 5... Bd6 {[%clk 0:03:04.9]} 6. Nc3 {[%clk 0:03:07]} 6... Nf6 {[%clk
0:03:05.6]} 7. Nf3 {[%clk 0:03:08.1]} 7... O-O {[%clk 0:03:06.4]} 8. O-O {[%clk
0:03:09.1]} 8... Nc6 {[%clk 0:03:08]} 9. h3 {[%clk 0:03:04.8]} 9... h6 {[%clk
0:03:07.6]} 10. Qc2 {[%clk 0:02:47.4]} 10... Nb4 {[%clk 0:03:00.7]} 11. Qb1
{[%clk 0:02:40.7]} 11... c6 {[%clk 0:03:01.3]} 12. a3 {[%clk 0:01:59.7]} 12...
Nbd5 {[%clk 0:02:48.3]} 13. Bd2 {[%clk 0:01:52.4]} 13... Be6 {[%clk 0:02:40.1]}
14. Ne5 {[%clk 0:01:39.2]} 14... Nxc3 {[%clk 0:02:16.6]} 15. Bxc3 {[%clk
0:01:35]} 15... Bxc4 {[%clk 0:02:12.6]} 16. Nxc4 {[%clk 0:01:35.3]} 16... Nd5
{[%clk 0:02:11.8]} 17. Qf5 {[%clk 0:01:16.6]} 17... Bc7 {[%clk 0:01:56.7]} 18.
Rfe1 {[%clk 0:01:13.2]} 18... Qh4 {[%clk 0:01:35.2]} 19. Re4 {[%clk 0:01:07.7]}
19... Qf6 {[%clk 0:01:32.4]} 20. Qxf6 {[%clk 0:00:54.1]} 20... Nxf6 {[%clk
0:01:34.3]} 21. Re2 {[%clk 0:00:46.8]} 21... Rfe8 {[%clk 0:01:32.1]} 22. Rae1
{[%clk 0:00:46.5]} 22... Rxe2 {[%clk 0:01:33.4]} 23. Rxe2 {[%clk 0:00:48.4]}
23... Nd5 {[%clk 0:01:12.4]} 24. Kf1 {[%clk 0:00:41.1]} 24... h5 {[%clk
0:01:11.1]} 25. Ne3 {[%clk 0:00:39]} 25... Nf4 {[%clk 0:01:11.8]} 26. Rd2 {[%clk
0:00:34.4]} 26... Rd8 {[%clk 0:01:10.5]} 27. h4 {[%clk 0:00:26.6]} 27... Bb6
{[%clk 0:01:03]} 28. Nc4 {[%clk 0:00:21.8]} 28... f6 {[%clk 0:00:55.5]} 29. Nxb6
{[%clk 0:00:22.5]} 29... axb6 {[%clk 0:00:57.4]} 30. g3 {[%clk 0:00:23.7]} 30...
Nd5 {[%clk 0:00:57.9]} 31. Rd3 {[%clk 0:00:25.2]} 31... Kf7 {[%clk 0:00:58.7]}
32. Bd2 {[%clk 0:00:26.7]} 32... b5 {[%clk 0:00:57.3]} 33. Ke2 {[%clk
0:00:28.2]} 33... Ra8 {[%clk 0:00:57.8]} 34. Rf3 {[%clk 0:00:28.3]} 34... Ra4
{[%clk 0:00:58.2]} 35. Kd3 {[%clk 0:00:29.1]} 35... g6 {[%clk 0:00:53.2]} 36.
Bc3 {[%clk 0:00:30.2]} 36... f5 {[%clk 0:00:53.8]} 37. Kc2 {[%clk 0:00:29.8]}
37... Ra8 {[%clk 0:00:51.2]} 38. Rd3 {[%clk 0:00:30.8]} 38... Re8 {[%clk
0:00:52.2]} 39. Rd1 {[%clk 0:00:31.5]} 39... f4 {[%clk 0:00:52]} 40. Re1 {[%clk
0:00:31.9]} 40... Rxe1 {[%clk 0:00:49]} 41. Bxe1 {[%clk 0:00:33.8]} 41... Kf6
{[%clk 0:00:50.3]} 42. Kd3 {[%clk 0:00:34.4]} 42... Kf5 {[%clk 0:00:51.8]} 43.
f3 {[%clk 0:00:34.1]} 43... fxg3 {[%clk 0:00:43.5]} 44. Bxg3 {[%clk 0:00:34.6]}
44... g5 {[%clk 0:00:39.3]} 45. b3 {[%clk 0:00:32.4]} 45... gxh4 {[%clk
0:00:33.9]} 46. Bxh4 {[%clk 0:00:32.4]} 46... Kf4 {[%clk 0:00:34.8]} 47. a4
{[%clk 0:00:32.6]} 47... bxa4 {[%clk 0:00:21.1]} 48. bxa4 {[%clk 0:00:34.5]}
48... Kxf3 {[%clk 0:00:22.4]} 49. Kc4 {[%clk 0:00:30.8]} 49... Kg4 {[%clk
0:00:22.8]} 50. Bd8 {[%clk 0:00:30.8]} 50... h4 {[%clk 0:00:22.2]} 51. Bxh4
{[%clk 0:00:26.9]} 51... Kxh4 {[%clk 0:00:24.1]} 52. Kc5 {[%clk 0:00:26.8]}
52... Kg4 {[%clk 0:00:22.4]} 53. Kd6 {[%clk 0:00:27.7]} 53... Kf5 {[%clk
0:00:21.3]} 54. a5 {[%clk 0:00:14.5]} 54... Ke4 {[%clk 0:00:22.1]} 55. Kd7
{[%clk 0:00:10.4]} 55... Kxd4 {[%clk 0:00:21.3]} 56. Kc8 {[%clk 0:00:11.7]}
56... Kc5 {[%clk 0:00:17.8]} 57. Kxb7 {[%clk 0:00:12]} 57... Kb5 {[%clk
0:00:19.1]} 58. a6 {[%clk 0:00:12.7]} 58... c5 {[%clk 0:00:19.9]} 0-1

[Event "*** Titled Tuesday Blitz"]
[Site "Chess.com"]
[Date "2018.06.05"]
[Round "3"]
[White "bugsbunny444"]
[Black "dawtonlms"]
[Result "1-0"]
[WhiteElo "2332"]
[BlackElo "2399"]
[TimeControl "180+2"]
[EndTime "13:42:57 PDT"]
[Termination "bugsbunny444 won by resignation"]

1. Nf3 {[%clk 0:03:01.9]} 1... Nf6 {[%clk 0:02:57.3]} 2. c4 {[%clk 0:03:03.4]}
2... e6 {[%clk 0:02:57.6]} 3. g3 {[%clk 0:03:04]} 3... d5 {[%clk 0:02:58.4]} 4.
Bg2 {[%clk 0:03:05.4]} 4... Be7 {[%clk 0:02:59.5]} 5. O-O {[%clk 0:03:06.4]}
5... O-O {[%clk 0:02:59.7]} 6. b3 {[%clk 0:03:08]} 6... c5 {[%clk 0:02:58.8]} 7.
e3 {[%clk 0:03:08.7]} 7... Nc6 {[%clk 0:02:59.3]} 8. Bb2 {[%clk 0:03:10.2]} 8...
b6 {[%clk 0:02:59.8]} 9. Nc3 {[%clk 0:03:10.9]} 9... Ba6 {[%clk 0:02:58.8]} 10.
Qe2 {[%clk 0:03:08.8]} 10... Qd7 {[%clk 0:02:58.7]} 11. Nb5 {[%clk 0:02:55.9]}
11... Rad8 {[%clk 0:02:39.4]} 12. Rfd1 {[%clk 0:02:55.7]} 12... Ne4 {[%clk
0:01:59.3]} 13. d3 {[%clk 0:02:19.4]} 13... Nd6 {[%clk 0:01:56.8]} 14. d4 {[%clk
0:01:52.4]} 14... cxd4 {[%clk 0:01:50.1]} 15. exd4 {[%clk 0:01:49.2]} 15... dxc4
{[%clk 0:01:12.7]} 16. bxc4 {[%clk 0:01:48.9]} 16... Nxc4 {[%clk 0:01:12]} 17.
Qxc4 {[%clk 0:00:34.5]} 17... Na5 {[%clk 0:01:12.4]} 18. Qc7 {[%clk 0:00:21]}
18... Bxb5 {[%clk 0:01:11.5]} 19. Qxd7 {[%clk 0:00:18.9]} 19... Rxd7 {[%clk
0:01:08]} 20. Ne5 {[%clk 0:00:20.2]} 20... Rdd8 {[%clk 0:01:09.2]} 21. Rac1
{[%clk 0:00:19.6]} 21... Bd6 {[%clk 0:01:07.2]} 22. d5 {[%clk 0:00:19.5]} 22...
exd5 {[%clk 0:01:05]} 23. Bxd5 {[%clk 0:00:17.4]} 23... Ba4 {[%clk 0:00:59]} 24.
Rd3 {[%clk 0:00:09.4]} 24... Bb5 {[%clk 0:00:56.6]} 25. Rdd1 {[%clk 0:00:10.1]}
25... Ba4 {[%clk 0:00:53.1]} 26. Rd3 {[%clk 0:00:11.1]} 26... h6 {[%clk
0:00:46.2]} 27. h4 {[%clk 0:00:04.4]} 27... Bb5 {[%clk 0:00:47.1]} 28. Rdd1
{[%clk 0:00:05.3]} 28... Bb8 {[%clk 0:00:42.4]} 29. Nxf7 {[%clk 0:00:04.1]}
29... Rxd5 {[%clk 0:00:40.2]} 30. Rxd5 {[%clk 0:00:03.4]} 30... Kxf7 {[%clk
0:00:38]} 31. Rxb5 {[%clk 0:00:04.1]} 31... Re8 {[%clk 0:00:38.7]} 32. Rf5+
{[%clk 0:00:04.2]} 32... Kg8 {[%clk 0:00:39.7]} 33. Rf3 {[%clk 0:00:03.8]} 33...
Nb7 {[%clk 0:00:40.3]} 34. Rfc3 {[%clk 0:00:03.5]} 34... Nc5 {[%clk 0:00:41.1]}
35. Ba3 {[%clk 0:00:04.7]} 35... Be5 {[%clk 0:00:41.6]} 36. Re3 {[%clk
0:00:05.4]} 36... Kf7 {[%clk 0:00:38.3]} 37. Bxc5 {[%clk 0:00:05.2]} 37... bxc5
{[%clk 0:00:40.2]} 38. Rce1 {[%clk 0:00:05.1]} 38... Kf6 {[%clk 0:00:40.9]} 39.
Kg2 {[%clk 0:00:04.7]} 39... Re7 {[%clk 0:00:40.3]} 40. f4 {[%clk 0:00:05.8]}
40... Bd6 {[%clk 0:00:41.6]} 41. Rxe7 {[%clk 0:00:07.4]} 41... Bxe7 {[%clk
0:00:43.5]} 42. Kf3 {[%clk 0:00:08.6]} 42... Bd6 {[%clk 0:00:44.8]} 43. Ke4
{[%clk 0:00:09.4]} 43... Ke6 {[%clk 0:00:44.2]} 44. f5+ {[%clk 0:00:09.2]} 44...
Kf6 {[%clk 0:00:45.1]} 45. g4 {[%clk 0:00:11.1]} 45... Bg3 {[%clk 0:00:46]} 46.
Rh1 {[%clk 0:00:12.1]} 46... Bf2 {[%clk 0:00:46.8]} 47. Kd5 {[%clk 0:00:12.1]}
47... a5 {[%clk 0:00:47.1]} 48. a4 {[%clk 0:00:12]} 48... Bd4 {[%clk 0:00:47]}
49. Ke4 {[%clk 0:00:09.6]} 49... Bf2 {[%clk 0:00:48]} 50. Kf3 {[%clk 0:00:10.6]}
50... Bd4 {[%clk 0:00:48.4]} 51. Re1 {[%clk 0:00:10.9]} 51... Be5 {[%clk
0:00:46.7]} 52. Rc1 {[%clk 0:00:08.9]} 52... Bd4 {[%clk 0:00:47.7]} 53. Re1
{[%clk 0:00:09.9]} 53... Be5 {[%clk 0:00:48.5]} 54. Rb1 {[%clk 0:00:11.4]} 54...
c4 {[%clk 0:00:46.8]} 55. Rb6+ {[%clk 0:00:12.2]} 55... Kf7 {[%clk 0:00:47.7]}
56. Ke4 {[%clk 0:00:12.3]} 56... Bf6 {[%clk 0:00:45.5]} 57. Rc6 {[%clk
0:00:12.6]} 57... c3 {[%clk 0:00:45.4]} 58. g5 {[%clk 0:00:13.9]} 58... hxg5
{[%clk 0:00:46.2]} 59. hxg5 {[%clk 0:00:15.8]} 59... Bxg5 {[%clk 0:00:47.4]} 60.
Rxc3 {[%clk 0:00:17.3]} 60... Bd2 {[%clk 0:00:48.5]} 61. Rc6 {[%clk 0:00:17.7]}
61... Bb4 {[%clk 0:00:48.7]} 62. Kd5 {[%clk 0:00:18.1]} 62... Be1 {[%clk
0:00:48.6]} 63. Kc4 {[%clk 0:00:19.1]} 63... Bd2 {[%clk 0:00:49.2]} 64. Kb5
{[%clk 0:00:19.6]} 64... Be1 {[%clk 0:00:49.5]} 65. Ra6 {[%clk 0:00:20.3]} 65...
Bd2 {[%clk 0:00:50.2]} 66. Rxa5 {[%clk 0:00:16.9]} 66... Kf6 {[%clk 0:00:51.4]}
67. Ra7 {[%clk 0:00:16.8]} 67... Be3 {[%clk 0:00:51.5]} 68. Rd7 {[%clk
0:00:15.7]} 1-0

[Event "*** Titled Tuesday Blitz"]
[Site "Chess.com"]
[Date "2018.06.05"]
[Round "3"]
[White "DiamondCrusher22"]
[Black "SamCopeland"]
[Result "1/2-1/2"]
[WhiteElo "1958"]
[BlackElo "2026"]
[TimeControl "180+2"]
[EndTime "13:43:02 PDT"]
[Termination "Game drawn by agreement"]

1. e4 {[%clk 0:03:01.9]} 1... Nf6 {[%clk 0:02:59.1]} 2. e5 {[%clk 0:02:57.4]}
2... Nd5 {[%clk 0:02:57.6]} 3. d4 {[%clk 0:02:51.1]} 3... d6 {[%clk 0:02:52]} 4.
Nf3 {[%clk 0:02:46.9]} 4... dxe5 {[%clk 0:02:52.2]} 5. dxe5 {[%clk 0:02:35.7]}
5... Bg4 {[%clk 0:02:52.4]} 6. Bc4 {[%clk 0:02:35.3]} 6... e6 {[%clk 0:02:50.9]}
7. O-O {[%clk 0:02:35.3]} 7... Nc6 {[%clk 0:02:45.1]} 8. Re1 {[%clk 0:02:30.9]}
8... Bc5 {[%clk 0:02:40.2]} 9. Bxd5 {[%clk 0:02:05.9]} 9... Qxd5 {[%clk
0:02:32.6]} 10. Nbd2 {[%clk 0:02:06.7]} 10... O-O-O {[%clk 0:02:25.9]} 11. Qe2
{[%clk 0:02:00.4]} 11... Nd4 {[%clk 0:02:22]} 12. Qe4 {[%clk 0:01:08.1]} 12...
Qxe4 {[%clk 0:02:13.4]} 13. Rxe4 {[%clk 0:01:02.9]} 13... Bxf3 {[%clk
0:01:04.9]} 14. gxf3 {[%clk 0:00:46.3]} 14... Nxc2 {[%clk 0:00:57.6]} 15. Rc4
{[%clk 0:00:36.3]} 15... Nxa1 {[%clk 0:00:51]} 16. Rxc5 {[%clk 0:00:37.2]} 16...
Rd5 {[%clk 0:00:46.9]} 17. Rc3 {[%clk 0:00:24.4]} 17... Rhd8 {[%clk 0:00:44.4]}
18. Ne4 {[%clk 0:00:15.9]} 18... Rd1+ {[%clk 0:00:41.6]} 19. Kg2 {[%clk
0:00:16.9]} 19... Kb8 {[%clk 0:00:23.3]} 20. b3 {[%clk 0:00:16.1]} 20... R8d3
{[%clk 0:00:20.2]} 21. Rc4 {[%clk 0:00:16.3]} 21... b5 {[%clk 0:00:17.9]} 22.
Rc5 {[%clk 0:00:16.9]} 22... a6 {[%clk 0:00:15]} 23. Be3 {[%clk 0:00:16.6]}
23... Kb7 {[%clk 0:00:13.7]} 24. b4 {[%clk 0:00:16.6]} 24... Rb1 {[%clk
0:00:11.9]} 25. a3 {[%clk 0:00:14.2]} 25... Nb3 {[%clk 0:00:12.4]} 26. Rc2
{[%clk 0:00:14]} 26... Nd4 {[%clk 0:00:13.1]} 27. Nc5+ {[%clk 0:00:14.8]} 27...
Kc6 {[%clk 0:00:12.3]} 28. Bxd4 {[%clk 0:00:14.1]} 28... Rxd4 {[%clk 0:00:12]}
29. Nxe6+ {[%clk 0:00:14.9]} 29... Kd5 {[%clk 0:00:12.5]} 30. Nxd4 {[%clk
0:00:15.9]} 30... Kxd4 {[%clk 0:00:14.4]} 31. Rxc7 {[%clk 0:00:16.9]} 31... Ra1
{[%clk 0:00:11.6]} 32. Rxf7 {[%clk 0:00:17.2]} 32... Kxe5 {[%clk 0:00:12.6]} 33.
Rxg7 {[%clk 0:00:17.9]} 33... Rxa3 {[%clk 0:00:13.6]} 34. Rxh7 {[%clk 0:00:19]}
34... a5 {[%clk 0:00:13.8]} 35. bxa5 {[%clk 0:00:19.6]} 35... Rxa5 {[%clk
0:00:15.7]} 36. Rb7 {[%clk 0:00:20.7]} 36... Kf5 {[%clk 0:00:14.3]} 37. Kg3
{[%clk 0:00:21.6]} 37... Kg5 {[%clk 0:00:15]} 38. h4+ {[%clk 0:00:22.5]} 38...
Kh5 {[%clk 0:00:15]} 39. f4 {[%clk 0:00:23.9]} 39... Ra3+ {[%clk 0:00:15.5]} 40.
f3 {[%clk 0:00:24.7]} 40... Rb3 {[%clk 0:00:16.6]} 41. f5 {[%clk 0:00:25.7]}
41... Rb1 {[%clk 0:00:17.2]} 42. Kf4 {[%clk 0:00:24.2]} 42... b4 {[%clk
0:00:16.2]} 43. f6 {[%clk 0:00:25.2]} 43... Kg6 {[%clk 0:00:16.3]} 44. f7 {[%clk
0:00:26.4]} 44... Kg7 {[%clk 0:00:17.2]} 45. h5 {[%clk 0:00:27]} 45... Rh1
{[%clk 0:00:16.8]} 46. Kg5 {[%clk 0:00:28.2]} 46... Rg1+ {[%clk 0:00:16]} 47.
Kf5 {[%clk 0:00:29.1]} 47... Rh1 {[%clk 0:00:16.5]} 48. Ke6 {[%clk 0:00:21.6]}
48... Re1+ {[%clk 0:00:15.8]} 49. Kf5 {[%clk 0:00:17.3]} 49... Rh1 {[%clk
0:00:16.4]} 50. f4 {[%clk 0:00:12.7]} 50... Rxh5+ {[%clk 0:00:16.7]} 51. Ke6
{[%clk 0:00:13.8]} 51... Rh8 {[%clk 0:00:15.9]} 52. f5 {[%clk 0:00:13.8]} 52...
Ra8 {[%clk 0:00:14.2]} 53. f6+ {[%clk 0:00:14.2]} 53... Kf8 {[%clk 0:00:13.9]}
54. Re7 {[%clk 0:00:12]} 54... b3 {[%clk 0:00:12.8]} 55. Rb7 {[%clk 0:00:09.4]}
55... Ra6+ {[%clk 0:00:12.8]} 56. Kf5 {[%clk 0:00:09.5]} 56... b2 {[%clk
0:00:14]} 57. Kg6 {[%clk 0:00:07]} 57... b1=Q+ {[%clk 0:00:10.1]} 58. Rxb1
{[%clk 0:00:07.6]} 58... Rxf6+ {[%clk 0:00:11.7]} 59. Kg5 {[%clk 0:00:04.6]}
59... Rxf7 {[%clk 0:00:10.6]} 60. Rb8+ {[%clk 0:00:05.1]} 60... Kg7 {[%clk
0:00:11.2]} 61. Rb6 {[%clk 0:00:04]} 1/2-1/2